bitfinex/quotes_SOLUSD_20250217
["timestamp","ask_amount","ask_price","bid_price","bid_amount"]
[1739787154052,0.12549,185.38,185.33,3.19323067]
[1739787155554,0.03,185.39,185.34,13.41184853]
[1739787155757,0.03,185.39,185.34,23.48358625]
[1739787156165,0.03,185.39,185.34,26.67681692]
[1739787156765,0.03,185.39,185.34,16.6050792]
[1739787157063,0.03,185.39,185.33,13.84863772]
[1739787157064,0.03,185.39,185.36,13.41184853]
[1739787157354,10.10173772,185.39,185.36,13.41184853]
[1739787158450,0.03,185.39,185.36,13.41184853]
[1739787158858,0.03,185.39,185.34,10.07173772]
[1739787159242,0.03,185.39,185.35,13.41184853]
[1739787160255,0.03,185.39,185.35,23.48358625]
[1739787160461,0.03,185.39,185.38,13.41184853]
[1739787160757,0.03,185.39,185.38,10.07173772]
[1739787161134,0.03,185.39,185.37,23.48358625]
[1739787161360,0.03,185.39,185.37,13.41184853]
[1739787161961,0.15549,185.39,185.37,13.41184853]
[1739787162276,0.15549,185.39,185.34,13.41184853]
[1739787162953,0.15549,185.39,185.35,3.19506442]
[1739787164362,0.15549,185.39,185.34,23.48358625]
[1739787164363,0.15549,185.39,185.37,13.41184853]
[1739787164533,0.15549,185.39,185.37,13.47484853]
[1739787165679,0.15549,185.39,185.37,0.063]
[1739787168444,0.03,185.39,185.37,0.063]
[1739787171578,0.15549,185.39,185.37,0.063]
[1739787171877,0.15549,185.39,185.38,8.31501624]
[1739787174679,0.15549,185.39,185.37,0.063]
[1739787175356,0.03,185.39,185.37,0.063]
[1739787176281,0.12549,185.38,185.37,0.063]
[1739787177281,0.03,185.39,185.37,0.063]
[1739787181382,0.03,185.39,185.38,16.60993929]
[1739787183468,0.03,185.39,185.38,30.45767701]
[1739787184967,0.03,185.39,185.38,16.60993929]
[1739787187483,0.15549,185.39,185.38,3.19809076]
[1739787188275,0.03,185.39,185.38,3.19809076]
[1739787190387,0.03,185.39,185.38,16.60993929]
[1739787190689,0.03,185.39,185.38,30.45767701]
[1739787191071,0.03,185.39,185.38,20.38593929]
[1739787191676,0.03,185.39,185.38,30.45767701]
[1739787192597,0.03,185.39,185.38,30.58316701]
[1739787193288,0.03,185.39,185.38,32.58316701]
[1739787193987,0.03,185.39,185.38,31.58316701]
[1739787194380,0.03,185.39,185.38,30.58316701]
[1739787194585,0.03,185.39,185.38,26.68167701]
[1739787194987,0.03,185.39,185.38,30.45767701]
[1739787195685,10.07173772,185.45,185.39,13.41184853]
[1739787195876,0.12549,185.45,185.39,27.25928625]
[1739787196272,162.2593066,185.5,185.42,10.07173772]
[1739787196273,10.07173772,185.48,185.42,10.07173772]
[1739787196474,10.07173772,185.48,185.43,13.41184853]
[1739787196674,10.07173772,185.48,185.42,13.41184853]
[1739787197890,10.07173772,185.48,185.43,8.31333761]
[1739787198191,10.07173772,185.45,185.43,8.31333761]
[1739787199488,10.07173772,185.44,185.37,20.30553772]
[1739787199691,10.32271772,185.43,185.37,0.063]
[1739787199996,10.07173772,185.42,185.4,13.41184853]
[1739787203197,10.32271772,185.41,185.37,0.063]
[1739787203406,10.07173772,185.4,185.37,0.063]
[1739787204121,3.90129,185.39,185.37,0.063]
[1739787204326,13.97302772,185.39,185.37,0.063]
[1739787205305,10.19722772,185.39,185.37,0.063]
[1739787206702,10.32271772,185.38,185.37,0.063]
[1739787208486,16.75380772,185.38,185.37,0.063]
[1739787208694,15.62831772,185.38,185.37,0.063]
[1739787211484,16.75380772,185.38,185.37,0.063]
[1739787211703,220.05098,185.37,185.31,0.063]
[1739787212004,10.32271772,185.32,185.31,0.063]
[1739787212884,14.09991772,185.32,185.31,0.063]
[1739787217012,54.3868686,185.32,185.31,0.063]
[1739787217183,44.31513088,185.32,185.31,0.063]
[1739787217387,14.09991772,185.32,185.31,0.063]
[1739787221199,0.25098,185.32,185.31,0.063]
[1739787221397,10.07173772,185.34,185.31,0.063]
[1739787221702,10.07173772,185.35,185.31,0.063]
[1739787221913,10.07173772,185.36,185.31,0.063]
[1739787222206,0.12549,185.35,185.31,0.063]
[1739787222387,10.19722772,185.35,185.31,0.063]
[1739787223804,0.12549,185.35,185.31,0.063]
[1739787224420,10.19722772,185.35,185.31,0.063]
[1739787224793,10.07173772,185.34,185.31,0.063]
[1739787224998,3.90219,185.35,185.31,0.063]
[1739787224999,10.32271772,185.32,185.31,0.063]
[1739787226728,150.59991772,185.32,185.31,0.063]
[1739787227903,146.82271772,185.32,185.31,0.063]
[1739787228705,150.59991772,185.32,185.31,0.063]
[1739787230731,14.09991772,185.32,185.31,0.063]
[1739787231131,10.32271772,185.32,185.31,0.063]
[1739787232132,14.09991772,185.32,185.31,0.063]
[1739787233622,4.02818,185.32,185.31,0.063]
[1739787233823,10.32271772,185.32,185.31,0.063]
[1739787234539,140.2766,185.35,185.31,0.063]
[1739787234839,10.07173772,185.34,185.31,0.063]
[1739787237440,10.07173772,185.32,185.31,0.063]
[1739787238636,10.19722772,185.33,185.31,0.063]
[1739787241255,0.25098,185.33,185.31,0.063]
[1739787241459,10.07173772,185.34,185.31,0.063]
[1739787241831,0.12549,185.33,185.31,0.063]
[1739787242322,10.07173772,185.34,185.31,0.063]
[1739787245976,0.03,185.37,185.32,13.41184853]
[1739787246181,0.03,185.37,185.32,23.48358625]
[1739787246373,0.25098,185.35,185.31,7.8738]
[1739787246565,10.32271772,185.35,185.31,7.8738]
[1739787246752,10.07173772,185.36,185.32,13.41184853]
[1739787246949,10.10173772,185.37,185.32,13.41184853]
[1739787247149,0.12549,185.36,185.32,16.61118733]
[1739787247657,10.10173772,185.37,185.32,16.61118733]
[1739787247658,0.03,185.37,185.32,16.61118733]
[1739787247860,10.07173772,185.36,185.32,16.61118733]
[1739787248073,10.07173772,185.35,185.32,16.61118733]
[1739787248277,10.19722772,185.36,185.32,16.61118733]
[1739787248480,10.32271772,185.36,185.32,16.61118733]
[1739787248851,10.32271772,185.36,185.32,13.41184853]
[1739787249882,10.19722772,185.36,185.32,13.41184853]
[1739787250049,10.10173772,185.37,185.32,13.41184853]
[1739787250255,10.10173772,185.37,185.32,17.18904853]
[1739787250558,10.10173772,185.37,185.34,13.41184853]
[1739787252184,10.10173772,185.37,185.35,3.20532463]
[1739787252688,0.03,185.37,185.35,3.20532463]
[1739787253461,0.03,185.37,185.34,13.41184853]
[1739787253663,0.03,185.37,185.36,33.41184853]
[1739787254800,0.03,185.37,185.36,43.48358625]
[1739787255085,0.03,185.37,185.36,47.25998625]
[1739787255379,0.03,185.37,185.36,50.46360164]
[1739787258590,0.03,185.37,185.36,46.68720164]
[1739787259177,0.03,185.37,185.36,50.46360164]
[1739787260594,0.03,185.37,185.36,26.68720164]
[1739787260888,0.03,185.37,185.36,16.61546392]
[1739787261684,0.03,185.37,185.36,20.39186392]
[1739787262379,0.03,185.37,185.36,16.61546392]
[1739787263791,0.03,185.37,185.36,3.20361539]
[1739787263976,10.10173772,185.37,185.36,3.20361539]
[1739787264377,0.03,185.37,185.36,3.20361539]
[1739787264687,10.10173772,185.37,185.36,3.20361539]
[1739787265081,0.03,185.37,185.36,3.20361539]
[1739787265486,0.03,185.37,185.33,13.41184853]
[1739787266586,0.03,185.37,185.32,23.48358625]
[1739787267091,0.03,185.37,185.35,13.41184853]
[1739787268969,0.03,185.37,185.36,16.60384407]
[1739787270711,0.03,185.37,185.36,13.41184853]
[1739787271489,0.03,185.37,185.33,0.063]
[1739787272278,0.03,185.37,185.35,13.41184853]
[1739787272881,0.25098,185.35,185.34,3.19097125]
[1739787273074,20.25098,185.33,185.31,0.063]
[1739787273274,10.32271772,185.32,185.31,0.063]
[1739787273997,14.09991772,185.32,185.31,0.063]
[1739787276686,10.32271772,185.32,185.31,0.063]
[1739787279299,10.07173772,185.33,185.31,0.063]
[1739787279487,30.07173772,185.33,185.31,0.063]
[1739787280188,10.07173772,185.33,185.31,0.063]
[1739787282097,0.12549,185.34,185.31,0.063]
[1739787282609,0.12549,185.34,185.31,0.1504]
[1739787284401,13.97412772,185.34,185.31,0.1504]
[1739787286611,10.07173772,185.32,185.31,0.1504]
[1739787286792,10.32271772,185.32,185.31,0.1504]
[1739787287194,10.19722772,185.32,185.31,0.1504]
[1739787287599,0.12549,185.32,185.31,0.1504]
[1739787287811,10.19722772,185.32,185.31,0.1504]
[1739787288487,10.07173772,185.32,185.31,0.1504]
[1739787289290,10.07173772,185.33,185.31,0.1504]
[1739787292496,10.07173772,185.34,185.31,0.1504]
[1739787292897,0.12549,185.33,185.31,0.1504]
[1739787293416,10.19722772,185.33,185.31,0.1504]
[1739787296320,0.12549,185.33,185.31,0.1504]
[1739787296501,13.97432772,185.33,185.31,0.1504]
[1739787296695,10.19722772,185.33,185.31,0.1504]
[1739787297818,10.19722772,185.32,185.31,0.1504]
[1739787298415,0.12549,185.32,185.31,0.1504]
[1739787298623,10.19722772,185.32,185.31,0.1504]
[1739787299222,0.12549,185.32,185.31,0.1504]
[1739787300015,10.19722772,185.32,185.31,0.1504]
[1739787300315,20.0,185.29,185.27,0.063]
[1739787300520,30.32271772,185.28,185.25,0.063]
[1739787300815,10.19722772,185.26,185.25,0.063]
[1739787301013,10.07173772,185.29,185.25,0.063]
[1739787301215,10.07173772,185.31,185.25,13.47484853]
[1739787301415,0.25098,185.31,185.25,23.54658625]
[1739787301624,0.12549,185.31,185.25,23.54658625]
[1739787303449,10.07173772,185.3,185.25,0.063]
[1739787303718,10.07173772,185.31,185.25,0.063]
[1739787303924,10.07173772,185.31,185.27,13.41184853]
[1739787304111,0.12549,185.3,185.27,13.41184853]
[1739787305019,0.12549,185.3,185.25,0.063]
[1739787305537,3.90309,185.3,185.25,0.063]
[1739787305726,13.97482772,185.3,185.25,0.063]
[1739787306808,3.90309,185.3,185.25,0.063]
[1739787308029,3.90309,185.3,185.27,13.41184853]
[1739787309505,3.90309,185.3,185.25,0.063]
[1739787311812,218.92549,185.33,185.26,23.48358625]
[1739787311813,222.70269,185.33,185.26,23.48358625]
[1739787312228,222.5772,185.33,185.27,10.07173772]
[1739787312533,222.5772,185.33,185.26,10.07173772]
[1739787312907,222.5772,185.33,185.29,13.41184853]
[1739787313112,3.7772,185.33,185.29,13.41184853]
[1739787313732,13.84893772,185.33,185.29,13.41184853]
[1739787314421,0.03,185.34,185.28,13.41184853]
[1739787314620,10.10173772,185.34,185.28,13.41184853]
[1739787315022,0.03,185.34,185.28,23.48358625]
[1739787316322,0.03,185.34,185.29,3.1953751]
[1739787317711,0.03,185.34,185.31,13.41184853]
[1739787319423,0.03,185.34,185.32,3.1953751]
[1739787320914,0.03,185.34,185.33,3.1953751]
[1739787322058,10.10173772,185.34,185.33,3.1953751]
[1739787322751,10.22722772,185.34,185.33,3.1953751]
[1739787323637,14.00402772,185.34,185.33,3.1953751]
[1739787324357,14.00402772,185.34,185.28,13.41184853]
[1739787324559,10.07173772,185.33,185.28,13.41184853]
[1739787325119,0.12549,185.28,185.25,0.063]
[1739787325343,10.19722772,185.28,185.25,0.063]
[1739787325934,10.19722772,185.28,185.26,3.19889556]
[1739787326339,13.97532772,185.28,185.26,3.19889556]
[1739787326554,10.07173772,185.28,185.26,3.19889556]
[1739787327470,13.84983772,185.28,185.27,3.19889556]
[1739787327664,13.97532772,185.28,185.27,3.19889556]
[1739787328665,14.10081772,185.28,185.27,3.19889556]
[1739787329250,0.12549,185.27,185.26,0.063]
[1739787329570,10.32271772,185.27,185.26,0.063]
[1739787329860,146.82271772,185.27,185.26,0.063]
[1739787330735,150.60091772,185.27,185.26,0.063]
[1739787331764,140.40369,185.27,185.26,0.063]
[1739787332259,136.5,185.27,185.26,0.063]
[1739787333033,13.84913772,185.31,185.26,0.063]
[1739787333546,35.66045427,185.32,185.26,0.063]
[1739787334351,10.07173772,185.28,185.26,0.063]
[1739787334555,10.19722772,185.27,185.26,0.063]
[1739787334756,14.10091772,185.27,185.26,0.063]
[1739787335370,4.02918,185.27,185.26,0.063]
[1739787335544,14.10091772,185.27,185.26,0.063]
[1739787335862,3.90369,185.27,185.26,0.063]
[1739787336249,13.97542772,185.27,185.26,0.063]
[1739787336467,14.10091772,185.27,185.26,0.063]
[1739787336668,19.79659085,185.27,185.26,0.063]
[1739787338839,19.67110085,185.27,185.26,0.063]
[1739787339042,19.54541085,185.29,185.26,0.063]
[1739787339343,15.76741085,185.29,185.26,0.063]
[1739787339763,3.7776,185.3,185.26,0.063]
[1739787339764,35.76741085,185.28,185.26,0.063]
[1739787340062,15.79741085,185.27,185.26,0.063]
[1739787340278,0.03,185.27,185.26,0.063]
[1739787341077,3.8082,185.27,185.26,0.063]
[1739787342352,0.03,185.27,185.26,0.063]
[1739787345652,0.03,185.27,185.26,3.25140369]
[1739787346691,16.04839085,185.27,185.26,3.25140369]
[1739787347272,16.04839085,185.27,185.26,0.063]
[1739787347453,0.28098,185.27,185.26,0.063]
[1739787347656,19.82659085,185.27,185.26,0.063]
[1739787350087,238.62659085,185.27,185.26,0.063]
[1739787351884,0.12549,185.26,185.19,12.37484853]
[1739787352090,15.76741085,185.23,185.19,12.37484853]
[1739787352776,15.76741085,185.21,185.18,0.09953581]
[1739787354167,19.54671085,185.22,185.18,0.09953581]
[1739787355475,19.54671085,185.22,185.19,3.18695976]
[1739787356175,15.76741085,185.21,185.19,3.18695976]
[1739787356399,16.01839085,185.2,185.19,3.18695976]
[1739787356878,16.01839085,185.2,185.18,0.09953581]
[1739787357084,15.89290085,185.19,185.18,0.09953581]
[1739787358611,19.67280085,185.19,185.18,0.09953581]
[1739787358906,19.79829085,185.19,185.18,0.09953581]
[1739787359396,28.13118085,185.19,185.18,0.09953581]
[1739787361999,20.37647,185.17,185.16,157.69842647]
[1739787362198,37.14388085,185.17,185.16,157.69842647]
[1739787362574,2.0,185.13,185.12,0.063]
[1739787362807,55.4414117,185.13,185.07,0.063]
[1739787362985,16.01839085,185.09,185.07,0.063]
[1739787363188,16.14388085,185.09,185.07,0.063]
[1739787364002,17.14388085,185.09,185.07,0.063]
[1739787364219,0.25098,185.05,185.04,0.063]
[1739787364526,16.01839085,185.05,185.04,0.063]
[1739787364722,19.80109085,185.05,185.04,0.063]
[1739787366817,16.01839085,185.05,185.04,0.063]
[1739787367117,15.76741085,185.06,185.04,0.063]
[1739787367308,15.76741085,185.07,185.04,0.063]
[1739787367525,16.01839085,185.06,185.04,0.063]
[1739787367930,15.76741085,185.06,185.04,0.063]
[1739787368099,15.76741085,185.09,185.04,0.063]
[1739787368302,98.06741085,185.09,185.04,0.063]
[1739787368505,15.76741085,185.08,185.04,0.063]
[1739787370336,98.06741085,185.09,185.04,0.063]
[1739787372331,15.76741085,185.09,185.04,0.063]
[1739787372526,15.76741085,185.08,185.04,0.063]
[1739787372706,15.76741085,185.07,185.04,0.063]
[1739787372906,15.76741085,185.06,185.04,0.063]
[1739787373216,82.3,185.08,185.04,0.063]
[1739787374026,114.58424563,185.12,185.05,15.76741085]
[1739787374328,114.58424563,185.12,185.05,19.55011085]
[1739787374514,118.36564563,185.12,185.05,19.55011085]
[1739787374719,15.76741085,185.11,185.05,13.41184853]
[1739787374922,118.36564563,185.12,185.05,29.17925938]
[1739787375235,98.81683478,185.12,185.07,13.41184853]
[1739787375413,16.51683478,185.12,185.1,13.41184853]
[1739787375613,16.51683478,185.12,185.1,29.17925938]
[1739787376326,16.51683478,185.12,185.1,32.96095938]
[1739787376620,16.51683478,185.12,185.11,13.41184853]
[1739787377324,16.51683478,185.12,185.08,15.76741085]
[1739787377513,16.51683478,185.12,185.07,27.22781085]
[1739787377712,16.51683478,185.12,185.08,13.41184853]
[1739787377925,16.51683478,185.12,185.09,15.76741085]
[1739787378117,16.51683478,185.12,185.1,29.17925938]
[1739787378444,16.51683478,185.12,185.11,29.17925938]
[1739787380047,16.51683478,185.12,185.11,29.30474938]
[1739787380341,0.063,185.19,185.15,13.41184853]
[1739787380560,0.063,185.19,185.15,15.76741085]
[1739787381041,0.063,185.19,185.16,13.41184853]
[1739787381939,0.063,185.19,185.16,32.95965938]
[1739787383359,0.063,185.19,185.17,15.76741085]
[1739787383523,0.063,185.19,185.18,15.76741085]
[1739787383726,0.063,185.19,185.18,32.95935938]
[1739787385960,0.063,185.19,185.18,29.17925938]
[1739787386352,0.063,185.19,185.18,13.41184853]
[1739787386965,0.063,185.19,185.15,8.0619]
[1739787387271,0.063,185.19,185.13,15.76741085]
[1739787387465,0.063,185.19,185.14,29.17925938]
[1739787387830,0.063,185.19,185.13,15.76741085]
[1739787388038,0.063,185.19,185.14,13.41184853]
[1739787388237,15.76741085,185.18,185.12,13.41184853]
[1739787388437,15.76741085,185.16,185.1,1.5783]
[1739787388736,15.76741085,185.16,185.11,13.41184853]
[1739787389257,15.76741085,185.15,185.11,13.41184853]
[1739787389646,19.54821085,185.15,185.09,13.41184853]
[1739787389843,15.76741085,185.14,185.09,13.41184853]
[1739787390242,15.76741085,185.14,185.08,13.41184853]
[1739787391173,15.76741085,185.14,185.07,15.79741085]
[1739787391174,15.76741085,185.11,185.07,0.03]
[1739787391671,19.54901085,185.11,185.07,0.03]
[1739787391841,15.76741085,185.1,185.07,0.03]
[1739787392041,19.54901085,185.11,185.07,0.03]
[1739787392450,3.7816,185.11,185.07,0.03]
[1739787392849,19.54901085,185.11,185.07,0.03]
[1739787393055,3.7816,185.11,185.07,0.03]
[1739787393257,152.26741085,185.12,185.07,0.03]
[1739787393777,15.76741085,185.08,185.07,0.03]
[1739787394141,15.76741085,185.09,185.07,0.03]
[1739787395242,15.76741085,185.08,185.07,0.03]
[1739787395461,136.5,185.13,185.07,0.03]
[1739787395768,35.76741085,185.1,185.07,0.03]
[1739787395967,15.76741085,185.1,185.07,0.03]
[1739787396167,15.76741085,185.09,185.07,0.03]
[1739787396348,0.25098,185.09,185.07,0.03]
[1739787396554,16.01839085,185.09,185.07,0.03]
[1739787396949,35.76741085,185.1,185.07,0.03]
[1739787397267,101.84871085,185.12,185.07,0.03]
[1739787397453,15.76741085,185.1,185.07,0.03]
[1739787397962,15.76741085,185.09,185.07,0.03]
[1739787399154,19.54921085,185.1,185.07,0.03]
[1739787399754,15.76741085,185.09,185.07,0.03]
[1739787399942,15.76741085,185.08,185.07,0.03]
[1739787400141,16.01839085,185.08,185.07,0.03]
[1739787401380,19.80049085,185.08,185.07,0.03]
[1739787401581,136.5,185.08,185.07,0.03]
[1739787401974,3.7821,185.08,185.07,0.03]
[1739787402269,19.80049085,185.08,185.07,0.03]
[1739787404788,21.54348085,185.08,185.07,0.03]
[1739787406265,0.12549,185.08,185.07,0.03]
[1739787407004,0.25098,185.08,185.07,0.03]
[1739787407158,15.76741085,185.12,185.07,0.03]
[1739787407660,0.37647,185.07,185.04,0.063]
[1739787407879,1.25098,185.04,184.95,0.063]
[1739787408087,0.25098,185.0,184.95,0.063]
[1739787408491,20.0,185.01,184.95,0.063]
[1739787408788,6.1681,185.06,184.96,13.41184853]
[1739787409322,16.01839085,185.01,184.95,0.063]
[1739787409690,16.01839085,185.01,184.95,13.47484853]
[1739787410196,0.25098,185.01,184.96,29.17925938]
[1739787410396,95.05565185,185.03,184.96,29.17925938]
[1739787410917,79.288241,185.03,184.98,29.17925938]
[1739787411986,152.26741085,185.04,184.98,13.41184853]
[1739787412390,15.89290085,185.03,184.96,15.76741085]
[1739787412628,152.26741085,185.04,184.97,15.76741085]
[1739787412800,136.5,185.04,184.99,13.41184853]
[1739787413005,0.12549,185.04,184.99,13.41184853]
[1739787416334,0.12549,185.04,184.99,29.17925938]
[1739787416903,15.76741085,185.06,184.99,29.17925938]
[1739787417104,15.76741085,185.05,184.96,33.41184853]
[1739787417334,15.76741085,185.05,184.99,13.41184853]
[1739787417726,0.12549,185.04,184.99,13.41184853]
[1739787418730,0.12549,185.04,185.0,13.41184853]
[1739787419127,0.12549,185.04,185.0,29.17925938]
[1739787419437,79.288241,185.05,185.02,13.41184853]
[1739787419599,79.288241,185.05,185.02,29.17925938]
[1739787420127,79.288241,185.05,185.02,13.41184853]
[1739787420911,215.788241,185.11,185.03,15.76741085]
[1739787421106,152.26741085,185.12,185.06,13.41184853]
[1739787421302,136.5,185.12,185.08,15.76741085]
[1739787421524,215.788241,185.13,185.08,15.76741085]
[1739787421731,0.37647,185.12,185.08,13.41184853]
[1739787422935,79.288241,185.13,185.09,29.17925938]
[1739787423636,83.069341,185.13,185.09,13.41184853]
[1739787424137,0.37647,185.12,185.06,15.76741085]
[1739787424631,0.37647,185.12,185.08,29.17925938]
[1739787426227,83.069441,185.13,185.1,13.41184853]
[1739787426228,79.288241,185.13,185.1,13.41184853]
[1739787426645,83.069341,185.13,185.08,29.17925938]
[1739787427145,79.288241,185.13,185.09,15.76741085]
[1739787427324,79.351241,185.13,185.1,29.17925938]
[1739787427515,79.351241,185.13,185.12,13.41184853]
[1739787427711,0.063,185.13,185.12,13.41184853]
[1739787427940,0.063,185.13,185.12,29.17925938]
[1739787429015,0.063,185.13,185.12,32.96055938]
[1739787429639,0.063,185.13,185.12,55.36157023]
[1739787432952,0.063,185.13,185.12,42.76402861]
[1739787433256,0.063,185.13,185.12,58.53143946]
[1739787433825,0.063,185.19,185.16,20.0]
[1739787434154,0.063,185.19,185.18,29.17925938]
[1739787440667,0.063,185.19,185.18,13.41184853]
[1739787440870,0.063,185.19,185.12,1.5415]
[1739787441075,0.18849,185.19,185.14,15.76741085]
[1739787441242,0.18849,185.19,185.15,15.76741085]
[1739787441446,0.18849,185.19,185.16,13.41184853]
[1739787441955,3.7801,185.18,185.15,13.41184853]
[1739787442148,0.18849,185.19,185.15,29.17925938]
[1739787442350,0.063,185.19,185.15,29.17925938]
[1739787442867,0.063,185.19,185.17,29.17925938]
[1739787443046,0.063,185.19,185.18,29.17925938]
[1739787445083,0.063,185.19,185.18,13.41184853]
[1739787445372,0.063,185.19,185.18,29.17925938]
[1739787448490,0.063,185.19,185.18,32.95935938]
[1739787456305,0.03,185.27,185.22,20.0]
[1739787456507,0.03,185.27,185.26,15.76741085]
[1739787456681,0.03,185.27,185.26,29.17925938]
[1739787459708,0.03,185.27,185.26,13.41184853]
[1739787460213,0.03,185.27,185.26,29.17925938]
[1739787463720,0.03,185.27,185.26,13.41184853]
[1739787464206,0.03,185.27,185.24,15.76741085]
[1739787464606,0.03,185.27,185.25,13.41184853]
[1739787465346,0.12549,185.25,185.18,0.03]
[1739787465534,15.89290085,185.24,185.18,0.03]
[1739787465727,15.89290085,185.24,185.18,13.44184853]
[1739787465932,15.76741085,185.24,185.18,13.44184853]
[1739787466133,152.26741085,185.25,185.18,29.20925938]
[1739787466336,136.5,185.25,185.2,13.41184853]
[1739787467051,15.76741085,185.23,185.18,0.03]
[1739787467757,19.67180085,185.24,185.18,13.44184853]
[1739787468249,0.12549,185.22,185.18,0.03]
[1739787468554,136.5,185.24,185.19,29.17925938]
[1739787468733,140.2789,185.24,185.19,29.17925938]
[1739787469145,140.2789,185.24,185.19,13.41184853]
[1739787469829,5.4496,185.27,185.22,29.17925938]
[1739787470030,5.4496,185.27,185.22,13.41184853]
[1739787470229,5.4496,185.27,185.21,13.41184853]
[1739787470230,0.12549,185.26,185.21,13.41184853]
[1739787470425,15.89290085,185.26,185.19,15.76741085]
[1739787470648,15.76741085,185.25,185.19,13.41184853]
[1739787470851,15.89290085,185.23,185.18,0.03]
[1739787471057,15.76741085,185.22,185.18,0.03]
[1739787471359,16.01839085,185.23,185.18,0.03]
[1739787471726,3.7792,185.22,185.18,0.03]
[1739787474062,20.12549,185.19,185.18,0.03]
[1739787474228,35.89290085,185.19,185.18,0.03]
[1739787474560,20.0,185.19,185.18,0.03]
[1739787474728,136.5,185.2,185.18,0.03]
[1739787475354,156.04721085,185.2,185.18,0.03]
[1739787476759,15.76741085,185.19,185.18,0.03]
[1739787477837,19.54731085,185.19,185.18,0.03]
[1739787478332,3.7799,185.19,185.18,0.03]
[1739787480063,39.54731085,185.19,185.18,0.03]
[1739787480262,39.92378085,185.19,185.18,0.03]
[1739787481661,39.92378085,185.19,185.18,0.0001]
[1739787481868,41.92378085,185.19,185.18,0.0001]
[1739787482033,19.92458085,185.15,185.14,0.03]
[1739787482738,22.04076283,185.15,185.14,0.03]
[1739787483263,0.12549,185.11,185.03,15.76741085]
[1739787483464,15.76741085,185.09,185.02,24.02851085]
[1739787484055,19.54971085,185.07,185.01,0.03]
[1739787484446,15.76741085,185.06,185.01,0.03]
[1739787484647,39.54971085,185.07,185.01,0.03]
[1739787485452,23.7823,185.07,185.01,0.03]
[1739787486168,39.54971085,185.07,185.01,0.03]
[1739787486738,39.54971085,185.07,185.01,13.44184853]
[1739787487071,23.7823,185.07,185.01,29.20925938]
[1739787487453,39.54971085,185.07,185.01,13.44184853]
[1739787487648,23.7823,185.07,185.02,13.41184853]
[1739787488251,39.54971085,185.07,185.01,13.44184853]
[1739787489371,3.7827,185.05,185.01,0.03]
[1739787489666,19.55011085,185.05,185.01,0.03]
[1739787489966,20.0,185.07,185.01,13.44184853]
[1739787489967,35.76741085,185.07,185.01,13.44184853]
[1739787490177,20.0,185.07,185.01,29.20925938]
[1739787490666,39.54981085,185.07,185.01,13.44184853]
[1739787491167,15.76741085,185.06,185.01,13.44184853]
[1739787491549,35.76741085,185.07,185.01,29.20925938]
[1739787491752,15.76741085,185.06,185.01,0.03]
[1739787491959,35.76741085,185.07,185.01,13.44184853]
[1739787492269,15.76741085,185.06,185.01,0.03]
[1739787492440,15.76741085,185.05,185.01,0.03]
[1739787493240,15.89290085,185.06,185.01,0.03]
[1739787493976,19.67550085,185.06,185.01,0.03]
[1739787495365,172.26741085,185.07,185.01,0.03]
[1739787495667,160.2823,185.07,185.01,15.79741085]
[1739787496238,176.04971085,185.07,185.01,0.03]
[1739787496447,15.76741085,185.06,185.01,0.03]
[1739787496691,15.76741085,185.05,185.01,0.03]
[1739787496971,15.76741085,185.06,185.01,0.03]
[1739787497167,176.04971085,185.07,185.01,13.44184853]
[1739787497578,15.76741085,185.06,185.01,0.03]
[1739787498069,98.06741085,185.06,185.01,0.03]
[1739787498478,15.89290085,185.05,185.01,0.03]
[1739787498774,15.76741085,185.05,185.01,0.03]
[1739787498992,98.06741085,185.06,185.01,0.03]
[1739787499473,82.3,185.06,185.01,0.03]
[1739787499684,82.3,185.06,185.01,15.79741085]
[1739787499865,82.3,185.06,185.01,0.03]